Workbook

Sheet Badezimmer-Umbaukosten
B1: Arbeitsblatt für Badezimmerumbau
B2: ANMERKUNG: Die Differenzspalten in der Tabelle zeigen an, ob die Ist-Beträge die geschätzten Beträge überschritten haben. Rote Zahlen zeigen eine Überschreitung (negativ) und schwarze eine Unterschreitung (positiv) an.
E3: Aufgeschlüsselte Kosten (€) | H3: Gesamtkosten (€)
B4: Bereich | C4: Artikel | D4: Menge | E4: Geschätzt | F4: Tatsächlich | G4: Differenz | H4: Geschätzt | I4: Tatsächlich | J4: Differenz
B5: Bad/Dusche | C5: Badewanne, Gusseisen, 5', Standard | D5: 1 | E5: 250.00 € | F5: =RANDBETWEEN(E5+2,E5+20) -> 260.00 € | G5: =IFERROR(Kosten[[#This Row],[Geschätzt]]-Kosten[[#This Row],[Tatsächlich]], "") -> -10.00 € | H5: =IFERROR(Kosten[[#This Row],[Menge]]*Kosten[[#This Row],[Geschätzt]], "") -> 250.00 € | I5: =IFERROR(Kosten[[#This Row],[Menge]]*Kosten[[#This Row],[Tatsächlich]], "") -> 260.00 € | J5: =IFERROR(Kosten[[#This Row],[Geschätzt ]]-Kosten[[#This Row],[Tatsächlich ]], "") -> -10.00 €
B6: Bad/Dusche | C6: Duschtüren, mit Scharnieren, Standard | D6: 1 | E6: 200.00 € | F6: 216.00 € | G6: =IFERROR(Kosten[[#This Row],[Geschätzt]]-Kosten[[#This Row],[Tatsächlich]], "") -> -16.00 € | H6: =IFERROR(Kosten[[#This Row],[Menge]]*Kosten[[#This Row],[Geschätzt]], "") -> 200.00 € | I6: =IFERROR(Kosten[[#This Row],[Menge]]*Kosten[[#This Row],[Tatsächlich]], "") -> 216.00 € | J6: =IFERROR(Kosten[[#This Row],[Geschätzt ]]-Kosten[[#This Row],[Tatsächlich ]], "") -> -16.00 €
B7: Bad/Dusche | C7: Duschkopf, Standard | D7: 1 | E7: 50.00 € | F7: 53.00 € | G7: =IFERROR(Kosten[[#This Row],[Geschätzt]]-Kosten[[#This Row],[Tatsächlich]], "") -> -3.00 € | H7: =IFERROR(Kosten[[#This Row],[Menge]]*Kosten[[#This Row],[Geschätzt]], "") -> 50.00 € | I7: =IFERROR(Kosten[[#This Row],[Menge]]*Kosten[[#This Row],[Tatsächlich]], "") -> 53.00 € | J7: =IFERROR(Kosten[[#This Row],[Geschätzt ]]-Kosten[[#This Row],[Tatsächlich ]], "") -> -3.00 €
B8: Bad/Dusche | C8: Wandabdeckung Duschtasse, Standard | D8: 1 | E8: 200.00 € | F8: 203.00 € | G8: =IFERROR(Kosten[[#This Row],[Geschätzt]]-Kosten[[#This Row],[Tatsächlich]], "") -> -3.00 € | H8: =IFERROR(Kosten[[#This Row],[Menge]]*Kosten[[#This Row],[Geschätzt]], "") -> 200.00 € | I8: =IFERROR(Kosten[[#This Row],[Menge]]*Kosten[[#This Row],[Tatsächlich]], "") -> 203.00 € | J8: =IFERROR(Kosten[[#This Row],[Geschätzt ]]-Kosten[[#This Row],[Tatsächlich ]], "") -> -3.00 €
B9: Schränke | C9: Medizinschrank 60 cm', Deluxe | D9: 1 | E9: 200.00 € | F9: 211.00 € | G9: =IFERROR(Kosten[[#This Row],[Geschätzt]]-Kosten[[#This Row],[Tatsächlich]], "") -> -11.00 € | H9: =IFERROR(Kosten[[#This Row],[Menge]]*Kosten[[#This Row],[Geschätzt]], "") -> 200.00 € | I9: =IFERROR(Kosten[[#This Row],[Menge]]*Kosten[[#This Row],[Tatsächlich]], "") -> 211.00 € | J9: =IFERROR(Kosten[[#This Row],[Geschätzt ]]-Kosten[[#This Row],[Tatsächlich ]], "") -> -11.00 €
B10: Schränke | C10: Toilettentisch modular 75 cm, Standard | D10: 2 | E10: 100.00 € | F10: 108.00 € | G10: =IFERROR(Kosten[[#This Row],[Geschätzt]]-Kosten[[#This Row],[Tatsächlich]], "") -> -8.00 € | H10: =IFERROR(Kosten[[#This Row],[Menge]]*Kosten[[#This Row],[Geschätzt]], "") -> 200.00 € | I10: =IFERROR(Kosten[[#This Row],[Menge]]*Kosten[[#This Row],[Tatsächlich]], "") -> 216.00 € | J10: =IFERROR(Kosten[[#This Row],[Geschätzt ]]-Kosten[[#This Row],[Tatsächlich ]], "") -> -16.00 €
B11: Arbeitsplatten | C11: Keramikfliesen, Deluxe (Menge in m2). | D11: 5 | E11: 22.50 € | F11: 32.00 € | G11: =IFERROR(Kosten[[#This Row],[Geschätzt]]-Kosten[[#This Row],[Tatsächlich]], "") -> -9.50 € | H11: =IFERROR(Kosten[[#This Row],[Menge]]*Kosten[[#This Row],[Geschätzt]], "") -> 112.50 € | I11: =IFERROR(Kosten[[#This Row],[Menge]]*Kosten[[#This Row],[Tatsächlich]], "") -> 160.00 € | J11: =IFERROR(Kosten[[#This Row],[Geschätzt ]]-Kosten[[#This Row],[Tatsächlich ]], "") -> -47.50 €
B12: Wasserhähne | C12: Wasserhahn Badewanne, Standard | D12: 1 | E12: 90.00 € | F12: 100.00 € | G12: =IFERROR(Kosten[[#This Row],[Geschätzt]]-Kosten[[#This Row],[Tatsächlich]], "") -> -10.00 € | H12: =IFERROR(Kosten[[#This Row],[Menge]]*Kosten[[#This Row],[Geschätzt]], "") -> 90.00 € | I12: =IFERROR(Kosten[[#This Row],[Menge]]*Kosten[[#This Row],[Tatsächlich]], "") -> 100.00 € | J12: =IFERROR(Kosten[[#This Row],[Geschätzt ]]-Kosten[[#This Row],[Tatsächlich ]], "") -> -10.00 €
B13: Wasserhähne | C13: Wasserhahn Dusche, Einhebel, Standard | D13: 1 | E13: 115.00 € | F13: 122.00 € | G13: =IFERROR(Kosten[[#This Row],[Geschätzt]]-Kosten[[#This Row],[Tatsächlich]], "") -> -7.00 € | H13: =IFERROR(Kosten[[#This Row],[Menge]]*Kosten[[#This Row],[Geschätzt]], "") -> 115.00 € | I13: =IFERROR(Kosten[[#This Row],[Menge]]*Kosten[[#This Row],[Tatsächlich]], "") -> 122.00 € | J13: =IFERROR(Kosten[[#This Row],[Geschätzt ]]-Kosten[[#This Row],[Tatsächlich ]], "") -> -7.00 €
B14: Wasserhähne | C14: Wasserhahn Ausguss, Standard | D14: 1 | E14: 95.00 € | F14: 105.00 € | G14: =IFERROR(Kosten[[#This Row],[Geschätzt]]-Kosten[[#This Row],[Tatsächlich]], "") -> -10.00 € | H14: =IFERROR(Kosten[[#This Row],[Menge]]*Kosten[[#This Row],[Geschätzt]], "") -> 95.00 € | I14: =IFERROR(Kosten[[#This Row],[Menge]]*Kosten[[#This Row],[Tatsächlich]], "") -> 105.00 € | J14: =IFERROR(Kosten[[#This Row],[Geschätzt ]]-Kosten[[#This Row],[Tatsächlich ]], "") -> -10.00 €
B15: Fußbodenbelag | C15: Keramikfliesen, Standard (Menge in m2). | D15: 35 | E15: 12.00 € | F15: 21.00 € | G15: =IFERROR(Kosten[[#This Row],[Geschätzt]]-Kosten[[#This Row],[Tatsächlich]], "") -> -9.00 € | H15: =IFERROR(Kosten[[#This Row],[Menge]]*Kosten[[#This Row],[Geschätzt]], "") -> 420.00 € | I15: =IFERROR(Kosten[[#This Row],[Menge]]*Kosten[[#This Row],[Tatsächlich]], "") -> 735.00 € | J15: =IFERROR(Kosten[[#This Row],[Geschätzt ]]-Kosten[[#This Row],[Tatsächlich ]], "") -> -315.00 €
B16: Eisenwaren | C16: Handtuchhalter, Standard | D16: 2 | E16: 15.00 € | F16: 26.00 € | G16: =IFERROR(Kosten[[#This Row],[Geschätzt]]-Kosten[[#This Row],[Tatsächlich]], "") -> -11.00 € | H16: =IFERROR(Kosten[[#This Row],[Menge]]*Kosten[[#This Row],[Geschätzt]], "") -> 30.00 € | I16: =IFERROR(Kosten[[#This Row],[Menge]]*Kosten[[#This Row],[Tatsächlich]], "") -> 52.00 € | J16: =IFERROR(Kosten[[#This Row],[Geschätzt ]]-Kosten[[#This Row],[Tatsächlich ]], "") -> -22.00 €
B17: Eisenwaren | C17: Toilettenpapierhalter | D17: 1 | E17: 10.00 € | F17: 12.00 € | G17: =IFERROR(Kosten[[#This Row],[Geschätzt]]-Kosten[[#This Row],[Tatsächlich]], "") -> -2.00 € | H17: =IFERROR(Kosten[[#This Row],[Menge]]*Kosten[[#This Row],[Geschätzt]], "") -> 10.00 € | I17: =IFERROR(Kosten[[#This Row],[Menge]]*Kosten[[#This Row],[Tatsächlich]], "") -> 12.00 € | J17: =IFERROR(Kosten[[#This Row],[Geschätzt ]]-Kosten[[#This Row],[Tatsächlich ]], "") -> -2.00 €
B18: Beleuchtung | C18: Deckenlampen, Standard | D18: 4 | E18: 25.00 € | F18: 45.00 € | G18: =IFERROR(Kosten[[#This Row],[Geschätzt]]-Kosten[[#This Row],[Tatsächlich]], "") -> -20.00 € | H18: =IFERROR(Kosten[[#This Row],[Menge]]*Kosten[[#This Row],[Geschätzt]], "") -> 100.00 € | I18: =IFERROR(Kosten[[#This Row],[Menge]]*Kosten[[#This Row],[Tatsächlich]], "") -> 180.00 € | J18: =IFERROR(Kosten[[#This Row],[Geschätzt ]]-Kosten[[#This Row],[Tatsächlich ]], "") -> -80.00 €
B19: Ausguss | C19: Toilette, Standard | D19: 2 | E19: 60.00 € | F19: 65.00 € | G19: =IFERROR(Kosten[[#This Row],[Geschätzt]]-Kosten[[#This Row],[Tatsächlich]], "") -> -5.00 € | H19: =IFERROR(Kosten[[#This Row],[Menge]]*Kosten[[#This Row],[Geschätzt]], "") -> 120.00 € | I19: =IFERROR(Kosten[[#This Row],[Menge]]*Kosten[[#This Row],[Tatsächlich]], "") -> 130.00 € | J19: =IFERROR(Kosten[[#This Row],[Geschätzt ]]-Kosten[[#This Row],[Tatsächlich ]], "") -> -10.00 €
B20: Sonstige | D20: 1 | E20: 20.00 € | F20: 36.00 € | G20: =IFERROR(Kosten[[#This Row],[Geschätzt]]-Kosten[[#This Row],[Tatsächlich]], "") -> -16.00 € | H20: =IFERROR(Kosten[[#This Row],[Menge]]*Kosten[[#This Row],[Geschätzt]], "") -> 20.00 € | I20: =IFERROR(Kosten[[#This Row],[Menge]]*Kosten[[#This Row],[Tatsächlich]], "") -> 36.00 € | J20: =IFERROR(Kosten[[#This Row],[Geschätzt ]]-Kosten[[#This Row],[Tatsächlich ]], "") -> -16.00 €
B21: Zwischensumme | E21: =SUBTOTAL(109,Kosten[Geschätzt]) -> 1,464.50 € | F21: =SUBTOTAL(109,Kosten[Tatsächlich]) -> 1,615.00 € | G21: =SUBTOTAL(109,Kosten[Differenz]) -> -150.50 € | H21: =SUBTOTAL(109,Kosten[[Geschätzt ]]) -> 2,212.50 € | I21: =SUBTOTAL(109,Kosten[[Tatsächlich ]]) -> 2,791.00 € | J21: =SUBTOTAL(109,Kosten[[Differenz ]]) -> -578.50 €
B23: Unerwartete Kosten (30 % zu Schätzung addieren) | E23: =IFERROR(Kosten[[#Totals],[Geschätzt]]*0.3, "") -> 439.35 € | H23: =IFERROR(Kosten[[#Totals],[Geschätzt ]]*0.3, "") -> 663.75 €
B24: Gesamtkosten | E24: =IFERROR(SUM(E21:E21), "") -> 1,464.50 € | H24: =IFERROR(SUM(Kosten[[#Totals],[Geschätzt ]],Überschuss), "") -> 2,876.25 €
